Cogmind - Beta 13 @@@ ROGUE MODE // 2024.03.05 @ 06:02:24 Player: Qwertychrish Result: Destroyed by G-47 Trooper with Particle Gun Performance ------------- Evolutions (2) 1000 Regions Visited (3) 600 Robots Destroyed (32) 160 Value Destroyed (774) 774 Prototype IDs (2) 40 Alien Tech Used (0) 0 Bonus (0) 0 TOTAL SCORE: 2574 Bonus ------- None Cogmind --------- Core Integrity 0/550 Matter 200/300 Energy 100/100 System Corruption 0% Temperature Warning (364) Movement Core (350) Ox6 Location -8/Materials Parts ------- > --- POWER (2) -------- (None) > --- PROPULSION (4) --- (None) > --- UTILITY (3) ------ Large Storage Unit Visual Processing Unit Improved Signal Interpreter > --- WEAPON (2) ------- Light Assault Rifle > --- INVENTORY (15) --- Light Ion Engine Cryofiber Web Small Battery (100) Improved Signal Interpreter Targeting Computer Reaction Control System Light Armor Plating Shield Generator Shock Rifle Beam Rifle Peak State ------------ > --- POWER ------------ Light Ion Engine Cooled Ion Engine > --- PROPULSION ------- Aluminum Leg Aluminum Leg Aluminum Leg Improved Aluminum Leg > --- UTILITY ---------- Large Storage Unit Visual Processing Unit Improved Signal Interpreter > --- WEAPON ----------- Shock Rifle Improved Medium Laser > --- INVENTORY -------- Ion Engine Light Ion Engine Cryofiber Web Small Battery Improved Signal Interpreter Targeting Computer Reaction Control System Shield Generator Shock Rifle Beam Rifle Particle Gun EM Pulse Cannon Light Assault Rifle Light Assault Rifle [Rating: 23] Favorites ----------- Power Light Ion Engine Engine Light Ion Engine Propulsion Aluminum Leg Treads Light Treads Leg Aluminum Leg Wheel Wheel Utility Large Storage Unit Device Heat Sink Storage Large Storage Unit Processor Improved Signal Interpreter Weapon Improved Medium Laser Energy Gun Improved Medium Laser Energy Cannon EM Pulse Cannon Ballistic Gun Light Assault Rifle Ballistic Cannon Assault Cannon Build | -11 -10 -9 -8 ------- Run | Yrd Mat Mat Mat Slots Evolved 4 | . . 2 2 Power 1 | . . . 1 Propulsion 2 | . . 1 1 Utility 1 | . . 1 . Weapon . | . . . . Parts Attached 39 | 6 8 14 11 Power 6 | 1 1 2 2 Engine 6 | 1 1 2 2 Core . | . . . . Reactor . | . . . . Propulsion 13 | 2 4 6 1 Treads 1 | . . 1 . Leg 8 | 2 . 5 1 Wheel 4 | . 4 . . Hover . | . . . . Flight . | . . . . Utility 8 | 1 3 3 1 Device 3 | . 1 2 . Storage 2 | 1 1 . . Processor 3 | . 1 1 1 Hackware . | . . . . Protection . | . . . . Artifact . | . . . . Weapon 12 | 2 . 3 7 Energy Gun 6 | 1 . 3 2 Energy Cannon 1 | . . . 1 Ballistic Gun 4 | 1 . . 3 Ballistic Cannon 1 | . . . 1 Launcher . | . . . . Special Weapon . | . . . . Impact Weapon . | . . . . Slashing Weapon . | . . . . Piercing Weapon . | . . . . Special Melee Weapon . | . . . . Unidentified Prototypes 2 | . . 2 . Parts Lost 17 | . 3 1 13 Power 4 | . 1 . 3 Propulsion 7 | . 2 1 4 Utility 1 | . . . 1 Weapon 5 | . . . 5 Highest Loss Streak 9 | . 3 1 9 To Critical Strikes . | . . . . Average Slot Usage (%) 95 | . 94 99 88 Engine 11 | . 11 11 12 Leg 27 | . 1 30 32 Wheel 3 | . 25 1 . Device 8 | . 11 11 2 Storage 10 | . 14 11 9 Processor 10 | . . 11 14 Energy Gun 16 | . 14 20 9 Ballistic Gun 3 | . 14 1 2 Ballistic Cannon 1 | . . . 3 Naked Turns . | . . . . Heaviest Build 39 | 12 28 35 39 Greatest Support 43 | 20 26 33 43 Greatest Overweight (x) 3 | 3 1 1 . Average Overweight (x) . | 1 . . . Largest Inventory Capacity 15 | 8 15 15 15 Average Capacity 14 | 7 14 15 15 Most Carried 15 | 6 13 15 15 Average Carried 13 | 4 10 14 14 Final Capacity 15 | 8 15 15 15 Final Carried 15 | 6 13 15 10 Class Distribution -------------------- 76% | Mutant 23% | Scavenger-Mutant Dominant Class ---------------- Mutant | -10/Materials Mutant | -9/Materials Scavenger-Mutant | -8/Materials Resources | -11 -10 -9 -8 ----------- Run | Yrd Mat Mat Mat Matter Collected 629 | 260 74 136 159 Remotely . | . . . . Salvage Created 829 | . 88 250 491 Parts 55 | . 3 19 33 Haulers Intercepted . | . . . . Recyclers Shooed . | . . . . Parts Field Recycled . | . . . . Retrieved Matter . | . . . . Parts Self-Destructed . | . . . . Prevented . | . . . . Kills | -11 -10 -9 -8 ------- Run | Yrd Mat Mat Mat Combat Hostiles Destroyed 27 | . 4 10 13 Guns 22 | . 4 10 8 Cannons 5 | . . . 5 Classes Destroyed 7 | . 2 2 3 Builder 1 | . . . 1 Mechanic 1 | . . . 1 Watcher 3 | . . 1 2 Swarmer 15 | . 3 7 5 Grunt 8 | . 1 2 5 Sentry 3 | . . 1 2 Hunter 1 | . . . 1 Best Kill Streak 7 | . 3 7 6 Combat Bots Only 7 | . 3 7 4 Max Kills in Single Turn 2 | . 1 1 2 Gunslinging . | . . . . Exploded . | . . . . Melee . | . . . . Uniques/NPCs Destroyed . | . . . . Combat | -11 -10 -9 -8 -------- Run | Yrd Mat Mat Mat Hostile Shots Fired 216 | . 35 49 132 Missed 39 | . 4 7 28 Damage Taken 2485 | . 338 430 1717 Core 685 | . 74 53 558 Absorbed by Shields . | . . . . Core Remaining (%) 85 | 100 70 86 . Volleys Fired 114 | . 19 24 71 Largest 2 | . 2 2 2 Hottest 128 | . 60 112 128 Shots Fired 203 | . 38 48 117 Gun 163 | . 38 48 77 Cannon 40 | . . . 40 Launcher . | . . . . Special . | . . . . Kinetic 83 | . 19 6 58 Thermal 95 | . 19 42 34 Explosive . | . . . . Electromagnetic 25 | . . . 25 Robot Hit Streak 12 | . 12 10 9 Robot Miss Streak 4 | . 2 4 4 Penetration Max . | . . . . Secondary Targets 2 | . . 1 1 Max Gunslinging Chain 1 | . . 1 1 Shots Hit Robots 134 | . 28 30 76 Core Hits 50 | . 8 12 30 Critical Kills . | . . . . Critical Parts Destroyed . | . . . . Critical Strikes 2 | . . 1 1 Burn 2 | . . 1 1 Melee Attacks . | . . . . Impact . | . . . . Slashing . | . . . . Piercing . | . . . . Sneak Attacks . | . . . . Combat Hostiles . | . . . . Follow-up Attacks . | . . . . Damage Inflicted 2573 | . 270 453 1850 Guns 1371 | . 270 453 648 Cannons 796 | . . . 796 Explosions 406 | . . . 406 Melee . | . . . . Ramming . | . . . . Kinetic 941 | . 103 43 795 Thermal 1253 | . 167 410 676 Explosive . | . . . . Electromagnetic 379 | . . . 379 Impact . | . . . . Slashing . | . . . . Piercing . | . . . . Highest Corruption . | . . . . Average Corruption . | . . . . Corruption Purged . | . . . . Corruption Blocked . | . . . . Overload Shots . | . . . . Overflow Damage 127 | . . . 127 Projectiles 6 | . . . 6 Explosions 121 | . . . 121 Melee . | . . . . Knockbacks 13 | . . . 13 Impact . | . . . . Kinetic 13 | . . . 13 Secondary . | . . . . Self-Inflicted Damage 80 | . . . 80 Shots 2 | . . . 2 Rammed . | . . . . Targets Rammed . | . . . . Kicked . | . . . . Crushed . | . . . . Highest Temperature 622 | . 158 135 622 Average Temperature 100 | . 85 36 133 Received Heat Transfer 939 | . 144 75 720 Effects 7 | . . . 7 Energy Bleed 1 | . . . 1 Damage (minor) 1 | . . . 1 Damage (major) 3 | . . . 3 Damage (core) 2 | . . . 2 Siege Activations . | . . . . Robots Corrupted . | . . . . Combat Hostiles . | . . . . Parts Fried . | . . . . Impact Corruptions . | . . . . Robots Melted . | . . . . Combat Hostiles . | . . . . Parts Melted 2 | . . 2 . Heat Transferred 2464 | . 375 1036 1053 Parts Sabotaged . | . . . . Parts Stolen . | . . . . Parts Stripped . | . . . . Power Chain Reactions 2 | . . . 2 Alert | -11 -10 -9 -8 ------- Run | Yrd Mat Mat Mat Peak Influence 402 | . 90 150 402 Initial 63 | . . 37 63 Average 99 | . 30 60 220 Maximum Alert Level 2 | . . . 2 Low Security (%) 82 | 100 100 100 37 Level 1 17 | . . . 61 Level 2 . | . . . 1 Level 3 . | . . . . Level 4 . | . . . . Level 5 . | . . . . High Security . | . . . . Max Security . | . . . . Squads Dispatched 2 | . . 1 1 Investigation . | . . . . Extermination . | . . . . Reinforcement 2 | . . 1 1 Assault . | . . . . Garrison . | . . . . Intercept . | . . . . Searches Triggered . | . . . . Construction Impeded 1 | . . . 1 Haulers Reinforced . | . . . . Active Scanning Responses . | . . . . Cargo Convoy Interrupts . | . . . . Stealth | -11 -10 -9 -8 --------- Run | Yrd Mat Mat Mat Distress Signals 3 | . 1 . 2 Communications Jammed . | . . . . Distress Signals . | . . . . Times Spotted 50 | . 9 14 27 Peak Tracking Total 6 | . 4 4 6 Tactical Retreats 4 | . . . 4 Traps | -11 -10 -9 -8 ------- Run | Yrd Mat Mat Mat Traps Triggered 1 | . . 1 . Indirectly . | . . . . Trap Hack Attempts . | . . . . Triggered . | . . . . Disarmed . | . . . . Reprogrammed . | . . . . Reused . | . . . . Traps Extracted . | . . . . Installed . | . . . . Triggered . | . . . . Machines | -11 -10 -9 -8 ---------- Run | Yrd Mat Mat Mat Machines Disabled 1 | . . 1 . Max in Single Turn 1 | . . 1 . Machines Repaired . | . . . . Machines Dismantled . | . . . . Machines Sabotaged . | . . . . Overloaded Fab Kills . | . . . . Hacking | -11 -10 -9 -8 --------- Run | Yrd Mat Mat Mat Machines Accessed 3 | . . 3 . Terminals 3 | . . 3 . Fabricators . | . . . . Repair Stations . | . . . . Recycling Units . | . . . . Scanalyzers . | . . . . Garrison Access . | . . . . Total Hacks 11 | . . 11 . Successful 4 | . . 4 . Failed 7 | . . 7 . Catastrophic 1 | . . 1 . Database Lockouts . | . . . . Manual 8 | . . 8 . Terminals 11 | . . 11 . Fabricators . | . . . . Repair Stations . | . . . . Recycling Units . | . . . . Scanalyzers . | . . . . Garrison Access . | . . . . Terminal Hacks 2 | . . 2 . Robot Analysis 1 | . . 1 . Zone Layout 1 | . . 1 . Fabricator Hacks . | . . . . Repair Station Hacks . | . . . . Recycling Unit Hacks . | . . . . Scanalyzer . | . . . . Garrison Access Hacks . | . . . . Unauthorized Hacks 2 | . . 2 . Terminals 2 | . . 2 . Track 2 | . . 2 . Fabricators . | . . . . Repair Stations . | . . . . Recycling Units . | . . . . Scanalyzers . | . . . . Garrison Access . | . . . . Data Cores Recovered . | . . . . Used . | . . . . Hacking Detections 3 | . . 3 . Full Trace Events . | . . . . Feedback Events . | . . . . Feedback Blocked . | . . . . Robot Schematics Acquired . | . . . . Robots Built . | . . . . Authchips . | . . . . Time . | . . . . Total Robot Build Rating . | . . . . Part Schematics Acquired . | . . . . Parts Built . | . . . . Authchips . | . . . . Time . | . . . . Total Part Build Rating . | . . . . Parts Repaired . | . . . . Time . | . . . . Parts Recycled . | . . . . Recycled Matter . | . . . . Retrieved Matter . | . . . . Retrieved Components . | . . . . Parts Scanalyzed . | . . . . Part Schematics Acquired . | . . . . Parts Damaged . | . . . . Bothacking | -11 -10 -9 -8 ------------ Run | Yrd Mat Mat Mat Used RIF Installer . | . . . . Robots Hacked . | . . . . Non-combat . | . . . . Combat . | . . . . Robot Hacks Applied . | . . . . Relay Couplers Released . | . . . . Fabnet Peak Effective % . | . . . . Robots Rewired . | . . . . Allies Hacked . | . . . . Hacks Repelled . | . . . . Allies | -11 -10 -9 -8 -------- Run | Yrd Mat Mat Mat Total Allies . | . . . . Largest Group . | . . . . Highest-Rated Group . | . . . . Highest-Rated Ally . | . . . . Total Orders . | . . . . Ally Attacks . | . . . . Total Damage . | . . . . Kills . | . . . . Allies Corrupted . | . . . . Allies Melted . | . . . . Intel | -11 -10 -9 -8 ------- Run | Yrd Mat Mat Mat Robot Analysis Total 1 | . . 1 . Derelict Logs Recovered . | . . . . Drone Launches . | . . . . Drone Recoveries . | . . . . Exploration | -11 -10 -9 -8 ------------- Run | Yrd Mat Mat Mat Turns Passed 1750 | 73 202 979 496 Spaces Moved 1014 | 41 128 630 215 Core 33 | 33 . . . Treads . | . . . . Legs 812 | 8 10 579 215 Wheels 169 | . 118 51 . Hover . | . . . . Flight . | . . . . Fastest Speed 50 | 50 90 95 120 Average Speed 125 | 144 97 131 120 Slowest Speed 200 | 200 120 190 120 Overloaded Moves . | . . . . Propulsion Burnouts . | . . . . Robots Hopped . | . . . . Cave-ins Triggered . | . . . . Exploration Rate (%) 27 | 5 37 37 30 Regions Visited 3 Branch Regions . Pre-discovered Areas . | . . . . Known Exits Taken 2 | . 1 1 . Unknown Exits Taken 1 | 1 . . . Scrap Searched . | . . . . Spaces Dug . | . . . . Terrain Destroyed 10 | . . . 10 Melee . | . . . . Projectile 2 | . . . 2 AOE 8 | . . . 8 Terrain Rammed . | . . . . Walls Destroyed . | . . . . Machines Disabled . | . . . . Actions | -11 -10 -9 -8 --------- Run | Yrd Mat Mat Mat Total 1298 | 52 168 737 341 Wait 81 | . 3 43 35 Move 1011 | 40 127 629 215 Hop . | . . . . Pick Up 34 | 6 10 13 5 Fast Attach 14 | 6 2 4 2 Attach 14 | . 3 3 8 Detach 1 | . . 1 . Swap 11 | . 3 7 1 Drop 18 | . 1 13 4 Fire 114 | . 19 24 71 Melee . | . . . . Ram . | . . . . Kick . | . . . . Crush . | . . . . Escape Stasis . | . . . . Rewire . | . . . . Trap . | . . . . Miscellaneous . | . . . . Route ------- -11/Scrapyard -10/Materials -9/Materials -8/Materials (discovered 1 exit: *Sto) History --------- Turn | Location | Event 25 | -11/Scrapyard | Discovered new exit (range 15) 74 | -11/Scrapyard | Entered Materials 180 | -10/Materials | Lost 3 parts (1p2n) 269 | -10/Materials | Discovered new exit (range 3) 272 | -10/Materials | Identified exit to Materials 276 | -10/Materials | Entered another Materials area 276 | -9/Materials | Evolved 2 slots: Propulsion x1, Utility x1 317 | -9/Materials | Build established: Mutant 1157 | -9/Materials | Destroyed 7 combat bots 1237 | -9/Materials | Discovered new exit (range 15) 1253 | -9/Materials | Identified exit to Materials 1255 | -9/Materials | Entered another Materials area 1255 | -8/Materials | Evolved 2 slots: Power x1, Propulsion x1 1352 | -8/Materials | Discovered new exit (range 6) 1358 | -8/Materials | Identified exit to Storage 1451 | -8/Materials | Build established: Scavenger-Mutant 1727 | -8/Materials | Core integrity fell below 50% 1735 | -8/Materials | Core integrity fell below 20% 1751 | -8/Materials | Destroyed by G-47 Trooper with Particle Gun Last Messages --------------- 01728_ K-01 Serf collects debris. 01728_ U-05 Engineer lays Concrete. 01729_ Particle Gun destroyed. 01731_ K-01 Serf collects debris. 01731_ U-05 Engineer lays Concrete. 01732_ Overheating: Visual Processing Unit damaged (-9). 01732_ U-05 Engineer lays Concrete. 01733_ Overheating: Energy bleed (-9). 01733_ G-47 Trooper IFF system glitched. 01733_ K-01 Serf collects debris. 01734_ U-05 Engineer builds a Wall. 01735_ Overheating: Core damaged (-77). 01737_ K-01 Serf collects debris. 01738_ Overheating: Imp. Signal Interpreter damaged (-7). 01738_ K-01 Serf collects debris. 01738_ G-47 Trooper destroyed. 01738_ Switching to secondary target: G-47 Trooper. 01739_ U-05 Engineer builds a Door. 01742_ K-01 Serf collects debris. 01749_ Lgt. Assault Rifle destroyed. Map ----- +----------------------------------------------------+ | ?????????????????????????????????????????????????? | | ?????????????????????????????????????????????????? | | ?????????????????????????????????????????????????? | | ?????????????????????????????????????????????????? | | ?????????????????????????????????????????????????? | | ?????????????????????????????????????????????????? | | ?????????????????????????????????????????????????? | | ?????????????????????????????????????????????????? | | ?????????????????????????????????????????????????? | | ?????????????????????????????????????????????????? | | ?????????????????????????????????????????????????? | | ?????????????????????????????????????????????????? | | ?????????????????????????????????????????????????? | | ?????????????????????????????????????????????????? | | ?????????????????????????????????????????????????? | | ?????????????????????????????????????????????????? | | ?????????????????????????????????????????????????? | | ?????????????????????????????????????????????????? | | ?????????????????????????????????????????????????? | | ????????????????????#???##########???????????????? | | ????????????????????# ??# #???????????????? | | ??????????????????### ###% #???????????????? | | ????????? ####### =;%[/! #???????????????? | | ???????? %#!g!| #???????????????? | | ???????? !/k!!! #???????????????? | | ???????? [%@[*= """#???????????????? | | ????????????#### ## # * #???????????????? | | ??????????????????####??# #?????????????? | | ????????????????????????# #?????????????? | | ????????????????????????######+###?????????????? | | ???????????????????????????# #[# #?????????????# | | ???????????????????????????### ###?????????????# | | ?????????????????????????????#%#???????????????# | | ?????????????????????????????#%#???????????????# | | ?????????????????????????????#%#???????????????# | | ?????????????????????????????# #???????????????# | | ?????????????????????????????# #???????????????# | | ?????????????????????????????# #???????????????# | | ?????????????????????????????# #???????????????# | | ?????????????????????????????# #???????????????# | | ?????????????????????+???????# #???????????????# | | ????????????????????? ????#### ########????????# | | ????????????????????? ????# #????+ | | ????????????????????? ????# ######## #????# | | ????????????????????? ????# #?????????????????## | | ????????????????????# #???# #?????????????????# | | ????????????????????# #???# #?????????????????# | | ????????????????????# #???# #?????????????????# | | ????????????????????# #???# #?????????????????# | | ????????????????????# #???# #?????????????????#[ | +----------------------------------------------------+ Best States ------------- Heat Dissipation 41 Energy Generation 19 Energy Capacity 305 Matter Stores 300 Matter Capacity 300 Sight Range 18 Terrain Scan Density 10 Evasion (%) 55 Item Schematics ----------------- None Robot Schematics ------------------ None Fabricated ------------ Nothing Alien Tech Used ----------------- None Achievements -------------- None Challenges ------------ None Game ------ Seed WeaponAbsorptionMachine Manual? 0 Play Time 00:22:02 Cumulative 22.4 hours Start 2024.03.05 @ 05:34:27 End 2024.03.05 @ 06:02:24 Sessions 1 Manual Loads 0 Difficulty Rogue Special Mode None Game No. 29 Rogue 29 Adventurer 0 Explorer 0 Win Type - Total 0 Types 0/0/0/0/0/0/0/0/0 Lore% 8 Gallery% 26 Achievement% 19 Wizard Run 0 Options --------- Layout 0 ASCII 0 Keyboard 0 Movement Numpad Keybinds 0 Fullscreen 1 Font 18/SmallcapsGlow Map View 76x50 Zoom Use 0% Tactical HUD 1 Map Filters NONE Filters NONE Steam X RUN: 18be1431-9ba6-4578-a0bd-71397dc3ed18